bitfinex/quotes_SOLUSD_20260304
["timestamp","ask_amount","ask_price","bid_price","bid_amount"]
[1772608640482,4.05855148,85.769,85.745,4.09861316]
[1772608640890,4.30333661,85.779,85.745,4.09861316]
[1772608641398,4.30333661,85.778,85.746,11.66235159]
[1772608641702,4.30333661,85.778,85.747,4.09861316]
[1772608642599,4.30333661,85.769,85.746,11.66235159]
[1772608644297,4.30333661,85.769,85.747,4.09861316]
[1772608644692,4.30333661,85.775,85.747,4.09861316]
[1772608646489,4.30333661,85.775,85.749,4.09861316]
[1772608647412,1.88044234,85.8,85.743,15.76130012]
[1772608647413,4.30333661,85.769,85.743,15.76130012]
[1772608648287,4.30333661,85.749,85.721,4.09861316]
[1772608648705,4.30333661,85.749,85.723,11.66536878]
[1772608648906,4.30333661,85.749,85.724,4.09861316]
[1772608649197,4.30333661,85.739,85.717,11.66619397]
[1772608649601,4.30333661,85.739,85.712,11.66684798]
[1772608649784,4.30333661,85.729,85.696,4.09861316]
[1772608649983,1.88044234,85.72,85.696,4.09861316]
[1772608650184,4.30333661,85.719,85.696,4.09861316]
[1772608650401,4.30333661,85.719,85.697,11.66901991]
[1772608650886,4.30333661,85.719,85.692,11.6696949]
[1772608653193,4.30333661,85.719,85.692,15.76830806]
[1772608653896,4.30333661,85.719,85.7,2.146217]
[1772608654094,4.30333661,85.729,85.701,15.76708844]
[1772608655102,4.30333661,85.728,85.701,4.09861316]
[1772608655305,4.30333661,85.719,85.701,4.09861316]
[1772608656498,4.30333661,85.719,85.7,17.91339163]
[1772608656694,4.30333661,85.719,85.701,4.09861316]
[1772608657005,4.30333661,85.719,85.7,13.81477847]
[1772608657006,4.30333661,85.749,85.711,4.09861316]
[1772608657201,4.30333661,85.739,85.711,4.09861316]
[1772608658009,4.30333661,85.745,85.721,4.09861316]
[1772608658806,4.30333661,85.745,85.722,11.66561676]
[1772608659018,4.30333661,85.745,85.723,4.09861316]
[1772608659806,4.30333661,85.769,85.741,4.09861316]
[1772608661693,4.30333661,85.759,85.727,4.09861316]
[1772608662713,4.30333661,85.759,85.731,4.09861316]
[1772608665311,4.30333661,85.759,85.733,4.09861316]
[1772608665609,4.30333661,85.757,85.726,4.09861316]
[1772608666409,4.30333661,85.749,85.726,4.09861316]
[1772608666798,4.30333661,85.759,85.726,4.09861316]
[1772608667404,4.30333661,85.759,85.728,4.09861316]
[1772608669906,4.30333661,85.759,85.73,4.15503795]
[1772608670605,4.05321431,85.767,85.731,4.15503795]
[1772608673207,4.05321431,85.767,85.73,1.88044234]
[1772608673208,1.88044234,85.76,85.733,4.15503795]
[1772608673411,1.88044234,85.76,85.732,40.82489618]
[1772608673412,4.05321431,85.772,85.741,4.15503795]
[1772608675113,4.05321431,85.772,85.743,4.15503795]
[1772608675428,4.05321431,85.769,85.743,4.15503795]
[1772608675912,4.05321431,85.769,85.742,11.66289566]
[1772608676826,4.05321431,85.769,85.738,4.15503795]
[1772608677326,4.05321431,85.767,85.738,4.15503795]
[1772608677526,4.05321431,85.749,85.721,4.15503795]
[1772608677828,4.05321431,85.759,85.721,4.15503795]
[1772608678324,4.05321431,85.769,85.731,4.15503795]
[1772608680826,4.05321431,85.759,85.733,4.15503795]
[1772608683613,4.05321431,85.759,85.735,4.15503795]
[1772608684210,4.05321431,85.774,85.741,4.15503795]
[1772608685408,4.05321431,85.782,85.751,4.15503795]
[1772608685606,4.05321431,85.782,85.75,1.88044234]
[1772608685607,4.05321431,85.782,85.753,4.15503795]
[1772608686718,4.05321431,85.779,85.753,4.15503795]
[1772608687020,4.05321431,85.769,85.743,11.66275964]
[1772608687321,4.05321431,85.759,85.73,15.81947222]
[1772608687524,4.05321431,85.759,85.731,4.15503795]
[1772608687705,4.05321431,85.759,85.733,4.15503795]
[1772608688623,4.05321431,85.769,85.733,4.15503795]
[1772608689921,4.05321431,85.769,85.735,4.15503795]
[1772608690127,4.05321431,85.767,85.735,4.15503795]
[1772608692025,4.05321431,85.767,85.734,40.82394382]
[1772608692026,4.05321431,85.767,85.737,4.15503795]
[1772608692827,4.05321431,85.766,85.737,4.15503795]
[1772608694626,1.88044234,85.78,85.741,4.15503795]
[1772608694841,4.05321431,85.779,85.741,4.15503795]
[1772608696927,4.05321431,85.778,85.743,4.15503795]
[1772608697430,1.88044234,85.77,85.743,4.15503795]
[1772608698026,1.88044234,85.78,85.751,4.15503795]
[1772608698530,3.98791825,85.779,85.751,4.15503795]
[1772608699225,3.98791825,85.779,85.744,40.81918267]
[1772608699226,3.98791825,85.779,85.753,3.98940324]
[1772608701441,3.98791825,85.779,85.754,11.66126361]
[1772608701610,3.98791825,85.779,85.754,15.59894313]
[1772608703338,3.98791825,85.779,85.755,3.93767952]
[1772608704842,3.98791825,85.779,85.756,11.66099165]
[1772608705141,3.98791825,85.779,85.756,15.59867117]
[1772608705841,6.06623022,85.77,85.752,3.93767952]
[1772608706229,4.18578788,85.77,85.752,3.93767952]
[1772608707837,4.18578788,85.77,85.753,11.6613996]
[1772608708736,15.84501207,85.769,85.746,3.93767952]
[1772608708930,4.18578788,85.759,85.743,11.66275149]
[1772608709319,4.18578788,85.759,85.744,3.93767952]
[1772608711058,4.18578788,85.759,85.717,61.2]
[1772608711059,4.18578788,85.759,85.731,11.66439211]
[1772608711224,4.18578788,85.749,85.731,11.66439211]
[1772608712029,4.18578788,85.754,85.732,3.93767952]
[1772608713237,4.18578788,85.754,85.733,11.66412]
[1772608713544,4.18578788,85.754,85.734,3.93767952]
[1772608715749,4.18578788,85.754,85.736,3.93767952]
[1772608716951,4.18578788,85.754,85.735,11.6638479]
[1772608717840,4.18578788,85.754,85.723,29.16364641]
[1772608717841,4.18578788,85.767,85.736,3.93767952]
[1772608719146,3.69383402,85.796,85.723,29.16364641]
[1772608719147,4.18578788,85.775,85.751,3.93767952]
[1772608719844,4.18578788,85.775,85.752,11.66153559]
[1772608720046,4.18578788,85.775,85.753,3.93767952]
[1772608726749,6.06630272,85.77,85.753,3.93767952]
[1772608727263,1.88051484,85.77,85.753,3.93767952]
[1772608727443,4.18578788,85.769,85.753,3.93767952]
[1772608727767,4.18578788,85.769,85.748,15.59975511]
[1772608729045,4.02348936,85.767,85.742,4.05243957]
[1772608729240,11.65936013,85.768,85.741,11.66303168]
[1772608729241,4.02348936,85.759,85.741,11.66303168]
[1772608729443,1.88051484,85.75,85.693,4.82477569]
[1772608729643,11.65936013,85.768,85.68,0.2]
[1772608729644,4.02348936,85.719,85.68,4.25243957]
[1772608729860,1.88051484,85.7,85.682,4.05243957]
[1772608730169,4.02348936,85.736,85.691,4.05243957]
[1772608730343,4.02348936,85.736,85.701,4.05243957]
[1772608730665,1.88051484,85.73,85.701,4.05243957]
[1772608731764,1.88051484,85.73,85.703,4.05243957]
[1772608732644,1.88051484,85.73,85.705,4.05243957]
[1772608733249,4.02348936,85.729,85.705,4.05243957]
[1772608734467,4.02348936,85.719,85.685,4.05243957]
[1772608734677,4.02348936,85.719,85.691,4.05243957]
[1772608737369,1.88051484,85.71,85.691,4.05243957]
[1772608738368,4.02348936,85.709,85.683,4.05243957]
[1772608738573,1.88051484,85.7,85.683,4.05243957]
[1772608739547,5.9040042,85.7,85.683,4.05243957]
[1772608740173,29.16540283,85.718,85.68,0.2]
[1772608740174,4.02348936,85.689,85.68,0.2]
[1772608740547,4.02348936,85.689,85.66,0.2]
[1772608740749,1.88051484,85.68,85.66,0.2]
[1772608741267,4.02348936,85.679,85.66,0.2]
[1772608742451,31.04870909,85.71,85.661,4.05243957]
[1772608742650,1.88051484,85.7,85.662,4.05243957]
[1772608743776,1.88051484,85.72,85.681,4.05243957]
[1772608744068,1.88051484,85.7,85.681,4.05243957]
[1772608744574,5.24244291,85.71,85.681,4.05243957]
[1772608744777,3.36192807,85.699,85.673,4.05243957]
[1772608745365,3.35276609,85.708,85.673,4.05243957]
[1772608747570,16.88257476,85.71,85.675,4.05243957]
[1772608747871,3.33474985,85.709,85.675,4.05243957]
[1772608749476,1.88051484,85.71,85.677,4.05243957]
[1772608749677,1.88051484,85.71,85.676,11.6718801]
[1772608749678,11.66466423,85.729,85.691,4.05243957]
[1772608749873,14.98181514,85.729,85.691,4.05243957]
[1772608750068,3.31715091,85.729,85.691,4.05243957]
[1772608750460,1.88051484,85.73,85.691,4.05243957]
[1772608750662,13.54380174,85.74,85.701,4.05243957]
[1772608751278,1.88051484,85.73,85.701,4.05243957]
[1772608752458,1.88051484,85.73,85.703,4.05243957]
[1772608753976,3.28314088,85.746,85.711,4.05243957]
[1772608754185,1.88051484,85.74,85.711,4.05243957]
[1772608754679,1.88051484,85.74,85.713,4.05243957]
[1772608755679,5.14725858,85.74,85.713,4.05243957]
[1772608757575,1.88051484,85.74,85.715,4.05243957]
[1772608758582,22.88459728,85.747,85.715,4.05243957]
[1772608758966,3.23499932,85.746,85.717,3.65357723]
[1772608760064,14.89735091,85.746,85.717,3.65357723]
[1772608760265,11.66235159,85.746,85.717,3.65357723]
[1772608760466,19.63392468,85.747,85.717,3.65357723]
[1772608760666,19.63392468,85.747,85.721,3.80439069]
[1772608760861,19.63392468,85.747,85.722,11.66561676]
[1772608761067,19.63392468,85.747,85.723,3.80439069]
[1772608763792,19.63392468,85.747,85.725,3.80439069]
[1772608764494,3.18280962,85.746,85.724,11.66534459]
[1772608764993,3.18280962,85.746,85.725,3.80439069]
[1772608765690,1.88051484,85.74,85.725,3.80439069]
[1772608765897,3.17568957,85.729,85.702,3.80439069]
[1772608767884,3.17568957,85.729,85.703,11.66820298]
[1772608768206,3.17568957,85.729,85.704,3.80439069]
[1772608769493,3.14803957,85.739,85.704,3.80439069]
[1772608770979,3.14803957,85.739,85.706,3.80439069]
[1772608771601,3.13467234,85.737,85.706,3.80439069]
[1772608772094,3.13467234,85.737,85.71,1.88252845]
[1772608772274,3.13467234,85.737,85.711,3.80439069]
[1772608773997,3.13467234,85.737,85.713,3.80439069]
[1772608775705,3.13467234,85.737,85.715,3.80439069]
[1772608777503,3.096356,85.735,85.715,3.80439069]
[1772608777691,3.096356,85.733,85.704,3.80439069]
[1772608779979,3.096356,85.733,85.706,3.80439069]
[1772608781203,3.07225592,85.737,85.711,3.80439069]
[1772608781583,14.73502797,85.743,85.711,3.80439069]
[1772608781791,11.6622482,85.747,85.721,3.80439069]
[1772608782583,3.05943555,85.75,85.722,11.66561676]
[1772608782793,3.05943555,85.749,85.723,3.80439069]
[1772608783186,3.04677239,85.739,85.71,3.80439069]
[1772608783690,3.04677239,85.729,85.702,3.80439069]
[1772608784703,3.04677239,85.729,85.703,11.66820298]
[1772608784897,11.66400493,85.734,85.704,3.80439069]
[1772608785502,11.66275502,85.744,85.711,3.80439069]
[1772608785907,3.02188239,85.743,85.711,3.80439069]
[1772608789001,2.9738174,85.741,85.713,3.51653847]
[1772608789204,1.88252845,85.74,85.713,3.51653847]
[1772608789401,2.96213226,85.739,85.713,3.51653847]
[1772608792012,11.66343232,85.739,85.713,3.51653847]
[1772608792207,2.92787994,85.738,85.713,3.51653847]
[1772608794822,2.90569358,85.798,85.731,3.51653847]
[1772608795120,18.51556385,85.813,85.771,3.51653847]
[1772608795298,0.1,85.82,85.8,1.88252845]
[1772608795613,0.1,85.82,85.771,0.28432314]
[1772608795614,3.66918275,85.819,85.771,0.28432314]
[1772608795814,3.66918275,85.809,85.77,1.88252845]
[1772608796196,1.88252845,85.8,85.77,1.88252845]
[1772608796397,3.66918275,85.799,85.76,1.88252845]
[1772608796793,3.66918275,85.799,85.744,3.69383402]
[1772608796794,3.66918275,85.789,85.75,1.88252845]
[1772608797309,3.66918275,85.789,85.76,1.88252845]
[1772608797719,3.66918275,85.789,85.761,3.51653847]
[1772608799318,3.66918275,85.787,85.751,3.51653847]
[1772608799821,3.66918275,85.769,85.745,11.6624022]
[1772608800324,3.66918275,85.759,85.735,11.66381429]
[1772608800920,3.66918275,85.766,85.74,1.88252845]
[1772608801323,3.66918275,85.766,85.741,40.8206109]
[1772608802410,3.66918275,85.766,85.742,3.51653847]
[1772608802708,3.66918275,85.766,85.744,3.51653847]
[1772608806506,3.66918275,85.759,85.733,3.51653847]
[1772608806706,3.66918275,85.759,85.734,11.66398395]
[1772608808013,3.66918275,85.759,85.726,11.66507244]
[1772608808411,3.66918275,85.739,85.708,0.28432314]
[1772608808655,3.66918275,85.739,85.712,11.66687993]
[1772608809718,3.66918275,85.739,85.71,1.88252845]
[1772608810026,3.66918275,85.739,85.708,29.16880571]
[1772608812220,3.66918275,85.729,85.703,15.18474145]
[1772608812521,3.66918275,85.729,85.703,11.66820298]
[1772608817631,3.66918275,85.729,85.703,15.18474145]
[1772608817832,3.66918275,85.729,85.705,11.66793069]
[1772608818436,3.17728898,85.727,85.7,1.88252845]
[1772608818618,3.17728898,85.727,85.698,11.66888375]
[1772608819639,3.17728898,85.727,85.698,14.80352017]
[1772608819933,3.17728898,85.727,85.7,13.55113988]
[1772608820939,3.17728898,85.727,85.64,46.90675335]
[1772608820940,3.24558265,85.709,85.671,3.2472162]
[1772608822223,3.24558265,85.707,85.673,3.2472162]
[1772608823733,3.24558265,85.707,85.68,1.88252845]
[1772608824116,3.24558265,85.707,85.681,11.67119898]
[1772608824316,3.24558265,85.707,85.681,14.91841518]
[1772608826213,3.24558265,85.707,85.682,3.2472162]
[1772608830538,3.24558265,85.707,85.683,14.91814275]
[1772608830725,3.24558265,85.707,85.683,11.67092655]
[1772608830926,3.24558265,85.707,85.684,3.2472162]
[1772608833244,3.24558265,85.707,85.685,11.67065414]
[1772608835742,3.24558265,85.707,85.672,29.18106265]
[1772608835743,3.24558265,85.705,85.68,11.67130152]
[1772608836332,3.24558265,85.699,85.68,11.67130152]
[1772608838636,3.24558265,85.709,85.681,3.2472162]
[1772608838842,3.24558265,85.716,85.681,3.2472162]
[1772608839949,3.24558265,85.716,85.682,40.84871967]
[1772608840257,3.24558265,85.716,85.683,3.2472162]
[1772608842656,3.24558265,85.716,85.685,3.2472162]
[1772608842854,11.66347127,85.738,85.701,3.2472162]
[1772608844258,1.88341697,85.73,85.701,3.2472162]
[1772608844845,3.24558265,85.727,85.703,3.2472162]
[1772608848849,4.83611691,85.73,85.705,2.91705901]
[1772608849956,2.95269994,85.734,85.711,2.91705901]
[1772608850750,2.95269994,85.729,85.711,2.91705901]
[1772608854678,2.95269994,85.734,85.713,2.91705901]
[1772608855951,2.95269994,85.732,85.713,2.91705901]
[1772608856170,1.88341697,85.73,85.708,2.91705901]
[1772608856470,2.95269994,85.729,85.708,2.91705901]
[1772608858070,2.95269994,85.729,85.709,14.58444516]
[1772608858770,2.95269994,85.729,85.71,2.91705901]
[1772608860670,2.95269994,85.758,85.72,1.88341697]
[1772608860872,2.95269994,85.749,85.72,1.88341697]
[1772608861063,2.95269994,85.749,85.711,43.75195767]
[1772608861373,2.95269994,85.739,85.711,14.58417291]
[1772608861549,2.95269994,85.729,85.711,2.91705901]
[1772608862668,1.88341697,85.77,85.721,2.91705901]
[1772608862669,2.95269994,85.765,85.721,2.91705901]
[1772608862880,102.5,85.796,85.741,2.91705901]
[1772608862881,2.95269994,85.779,85.741,2.91705901]
[1772608863684,2.95269994,85.779,85.751,2.91705901]
[1772608863860,2.95269994,85.785,85.751,2.91705901]
[1772608864550,2.95269994,85.783,85.751,2.91705901]
[1772608864755,2.95269994,85.779,85.752,14.5785946]
[1772608865554,2.95269994,85.779,85.752,11.66153559]
[1772608865760,2.95269994,85.779,85.753,2.91705901]
[1772608866776,2.95269994,85.794,85.771,2.91705901]
[1772608868357,2.95269994,85.807,85.781,2.91705901]
[1772608868562,14.70509051,85.82,85.791,2.91705901]
[1772608868868,0.1,85.82,85.791,2.91705901]
[1772608869576,2.95269994,85.818,85.791,2.91705901]
[1772608869870,0.1,85.82,85.801,2.91705901]
[1772608871575,0.1,85.82,85.803,2.91705901]
[1772608872284,2.95269994,85.809,85.781,2.91705901]
[1772608873287,2.95269994,85.809,85.79,1.88341697]
[1772608873474,1.98341697,85.82,85.791,2.91705901]
[1772608873475,2.95269994,85.816,85.791,2.91705901]
[1772608875083,2.95269994,85.816,85.793,2.91705901]
[1772608875684,11.65297442,85.815,85.793,2.91705901]
[1772608875884,2.95269994,85.814,85.793,2.91705901]
[1772608876221,1.88341697,85.81,85.787,2.91705901]
[1772608876388,2.95269994,85.809,85.784,11.65705418]
[1772608876897,2.95269994,85.809,85.785,2.91705901]
[1772608877676,2.95269994,85.819,85.791,2.91705901]
[1772608877894,2.95269994,85.818,85.793,2.91705901]
[1772608879901,0.1,85.83,85.811,2.73259466]
[1772608880074,0.1,85.83,85.821,2.73259466]
[1772608880579,0.1,85.83,85.82,1.88341697]
[1772608880888,0.1,85.83,85.814,2.56825295]
[1772608881092,0.1,85.84,85.821,2.56825295]
[1772608881293,0.1,85.84,85.831,2.56825295]
[1772608881983,0.1,85.84,85.82,1.88341697]
[1772608881984,0.1,85.84,85.822,2.56825295]
[1772608882384,2.57622156,85.829,85.791,2.56825295]
[1772608882785,2.57622156,85.829,85.801,2.56825295]
[1772608885093,2.57622156,85.827,85.803,2.56825295]
[1772608885304,2.57622156,85.839,85.811,2.56825295]
[1772608885591,1.98341697,85.84,85.821,2.56825295]
[1772608885592,0.1,85.84,85.821,2.56825295]
[1772608885975,11.64971632,85.839,85.811,2.56825295]
[1772608886298,2.57622156,85.838,85.803,2.56825295]
[1772608887894,0.1,85.84,85.805,2.56825295]
[1772608888097,0.1,85.85,85.804,11.65446832]
[1772608888098,0.1,85.85,85.83,4.45166992]
[1772608888298,0.1,85.86,85.841,2.56825295]
[1772608888482,0.1,85.87,85.841,2.56825295]
[1772608888688,0.1,85.87,85.84,1.88341697]
[1772608888689,0.1,85.87,85.851,2.56825295]
[1772608889798,2.57622156,85.859,85.833,2.56825295]
[1772608890401,2.57622156,85.859,85.83,1.88341697]
[1772608890402,2.57622156,85.859,85.834,11.65039494]
[1772608890704,2.57622156,85.859,85.835,2.56825295]
[1772608891098,0.1,85.87,85.841,2.56825295]
[1772608891287,0.1,85.87,85.851,2.56825295]
[1772608892303,2.57622156,85.869,85.835,2.56825295]
[1772608892794,2.57622156,85.869,85.83,1.87670509]
[1772608892795,2.57622156,85.868,85.837,2.56825295]
[1772608894001,11.64591752,85.867,85.837,2.56825295]
[1772608894206,2.57622156,85.866,85.837,2.56825295]
[1772608895308,2.57622156,85.866,85.838,11.64985204]
[1772608895804,2.57622156,85.866,85.838,14.21810499]
[1772608895995,2.57622156,85.866,85.839,2.56825295]
[1772608896306,2.57622156,85.859,85.834,2.56825295]
[1772608897326,13.62226437,85.87,85.841,2.56825295]
[1772608897600,0.1,85.87,85.841,2.56825295]
[1772608898181,1.97670509,85.87,85.841,2.56825295]
[1772608898413,2.57622156,85.859,85.83,13.52755118]
[1772608898789,11.64564627,85.869,85.821,2.56825295]
[1772608898790,2.57622156,85.849,85.821,2.56825295]
[1772608899191,11.64849501,85.848,85.821,2.56825295]
[1772608899398,2.57622156,85.847,85.821,14.22039565]
[1772608899810,2.57622156,85.839,85.809,2.56825295]
[1772608901496,1.87670509,85.84,85.811,2.56825295]
[1772608901697,13.52639927,85.84,85.811,2.56825295]
[1772608902909,45.22657236,85.84,85.802,2.56825295]
[1772608903112,16.10262083,85.84,85.802,2.56825295]
[1772608903316,1.87670509,85.83,85.802,2.56825295]
[1772608903784,1.87670509,85.82,85.802,2.56825295]
[1772608904190,14.2272952,85.829,85.802,2.56825295]
[1772608905293,11.65035768,85.835,85.804,2.56825295]
[1772608905806,13.52641161,85.84,85.811,2.56825295]
[1772608906506,1.87670509,85.85,85.82,1.87670509]
[1772608906707,11.64835932,85.849,85.821,2.56825295]
[1772608909511,11.64835932,85.849,85.823,2.38606618]
[1772608911291,0.1,85.88,85.83,1.87670509]
[1772608911497,0.1,85.88,85.851,2.38606618]
[1772608911718,0.1,85.88,85.861,2.38606618]
[1772608911915,11.74426745,85.88,85.861,2.38606618]
[1772608912116,1.97670509,85.88,85.861,2.38606618]
[1772608912321,0.1,85.89,85.871,2.38606618]
[1772608912611,14.03060074,85.913,85.881,2.38606618]
[1772608913196,1.87670509,85.9,85.871,2.38606618]
[1772608913411,11.64157906,85.899,85.871,2.38606618]
[1772608913611,2.39089309,85.909,85.881,2.38606618]
[1772608913907,14.03115615,85.909,85.881,2.38606618]
[1772608916420,11.64026306,85.909,85.881,2.38606618]
[1772608918719,2.39089309,85.908,85.881,2.38606618]
[1772608919003,11.64026306,85.909,85.874,2.38606618]
[1772608919004,1.87670509,85.9,85.874,2.38606618]
[1772608920823,1.87670509,85.89,85.867,2.38606618]
[1772608921914,13.51957508,85.89,85.867,2.38606618]
[1772608922997,2.39089309,85.896,85.867,2.38606618]
[1772608923910,1.87670509,85.89,85.867,2.38606618]
[1772608924416,11.64185012,85.897,85.869,2.38606618]
[1772608924621,11.64185012,85.897,85.871,2.38606618]
[1772608925022,2.39089309,85.904,85.871,2.38606618]
[1772608925224,1.0231045,85.914,85.86,1.87670509]
[1772608925225,1.0231045,85.914,85.891,2.38606618]
[1772608925414,1.0231045,85.914,85.901,2.38606618]
[1772608926505,11.63643133,85.937,85.902,2.38606618]
[1772608926709,11.63588074,85.942,85.911,2.38606618]
[1772608927020,11.63347056,85.959,85.931,2.38606618]
[1772608928828,2.39089309,85.949,85.916,11.63920377]
[1772608929127,5.67226142,86.0,85.916,11.63920377]
[1772608929128,11.63131367,85.975,85.931,2.38606618]
[1772608929310,5.57226142,85.98,85.951,2.38606618]
[1772608929507,2.39089309,85.981,85.951,2.38606618]
[1772608929508,11.63124221,85.976,85.951,2.38606618]
[1772608929823,26.41214198,85.977,85.951,2.38606618]
[1772608930520,2.39089309,85.969,85.941,2.38606618]
[1772608930717,11.63209994,85.969,85.941,14.02182648]
[1772608930916,11.63209994,85.969,85.942,2.38606618]
[1772608931326,11.63130493,85.975,85.951,2.38606618]
[1772608932007,11.63130493,85.975,85.94,5.57226142]
[1772608932008,5.57226142,85.97,85.944,2.38606618]
[1772608932733,14.02219802,85.975,85.944,2.38606618]
[1772608933112,14.78104079,85.977,85.951,2.38606618]
[1772608933331,11.63115287,85.976,85.951,2.38606618]
[1772608934514,14.02204596,85.976,85.951,2.38606618]
[1772608935314,14.78104079,85.977,85.951,2.38606618]
[1772608935728,14.78104079,85.977,85.95,5.57226142]
[1772608935729,14.78104079,85.977,85.953,2.38606618]
[1772608935924,26.41215066,85.977,85.953,2.38606618]
[1772608936130,5.57226142,85.97,85.953,2.38606618]
[1772608936515,11.63209994,85.969,85.953,2.38606618]
[1772608936824,2.39089309,85.959,85.931,2.38606618]
[1772608937010,5.57226142,85.95,85.931,2.38606618]
[1772608937834,5.57226142,85.94,85.916,2.38606618]
[1772608938714,11.63616053,85.939,85.916,2.38606618]
[1772608939036,8.04239507,85.93,85.901,2.48493061]
[1772608939543,8.04239507,85.93,85.89,5.57226142]
[1772608939544,5.57226142,85.91,85.881,2.48493061]
[1772608940814,5.57226142,85.91,85.884,2.47965677]
[1772608941018,11.64022395,85.909,85.884,2.47965677]
[1772608941228,5.57226142,85.9,85.884,2.47965677]
[1772608942313,11.64022395,85.909,85.884,2.47965677]
[1772608942517,2.37706985,85.919,85.884,2.47965677]
[1772608942733,5.57226142,85.91,85.884,2.47965677]
[1772608942940,14.01602339,85.919,85.886,2.47965677]
[1772608943129,5.57226142,85.91,85.886,2.47965677]
[1772608943817,14.01602339,85.919,85.886,2.47965677]
[1772608945134,5.57226142,85.91,85.888,2.47965677]
[1772608946941,14.01602339,85.919,85.888,2.47965677]
[1772608947320,5.57226142,85.91,85.889,11.64293448]
[1772608947618,17.21104746,85.92,85.89,2.47965677]
[1772608947941,5.57226142,85.93,85.891,2.47965677]
[1772608948135,5.57226142,85.93,85.889,11.64293448]
[1772608948136,11.63616053,85.939,85.911,2.47965677]
[1772608948541,2.37706985,85.959,85.921,2.47965677]
[1772608948730,5.57226142,85.96,85.931,2.47965677]
[1772608949648,2.37706985,85.949,85.923,2.47965677]
[1772608950420,5.57226142,85.95,85.923,2.47965677]
[1772608950620,11.63345315,85.959,85.923,2.47965677]
[1772608951265,11.63345315,85.959,85.931,2.47965677]
[1772608953140,11.63345315,85.959,85.933,2.47965677]
[1772608953342,7.95029752,85.95,85.921,2.47965677]
[1772608953534,5.57322767,85.94,85.921,2.47965677]
[1772608953750,7.95029752,85.95,85.921,2.47965677]
[1772608955742,11.63480668,85.949,85.921,2.47965677]
[1772608956247,14.01187653,85.949,85.921,2.47965677]
[1772608956940,11.63480668,85.949,85.921,2.47965677]
[1772608959345,14.01187653,85.949,85.921,2.47965677]
[1772608960831,11.63480668,85.949,85.921,2.47965677]
[1772608962050,2.37706985,85.939,85.914,2.47965677]
[1772608962347,5.57322767,85.94,85.914,2.47965677]
[1772608962657,2.37706985,85.945,85.914,2.47965677]
[1772608962850,2.37706985,85.939,85.907,2.47965677]
[1772608963049,2.37706985,85.939,85.909,2.47965677]
[1772608963448,2.37706985,85.946,85.911,2.47965677]
[1772608963760,5.57322767,85.94,85.911,2.47965677]
[1772608964544,11.63616053,85.939,85.913,2.47965677]
[1772608966344,5.57322767,85.95,85.913,2.47965677]
[1772608967339,14.01194477,85.949,85.915,2.47965677]
[1772608967556,2.37706985,85.948,85.915,2.47965677]
[1772608969259,11.63425324,85.954,85.921,2.29750784]
[1772608970038,11.63425324,85.954,85.931,2.29750784]
[1772608970243,11.63353302,85.959,85.931,2.29750784]
[1772608971253,2.36958779,85.958,85.931,2.29750784]
[1772608971761,2.36958779,85.958,85.933,2.29750784]
[1772608972753,11.63353302,85.959,85.933,2.29750784]
[1772608976073,5.57322767,85.95,85.933,2.29750784]
[1772608976254,40.71716591,85.959,85.911,11.63995297]
[1772608976255,7.94281546,85.94,85.911,11.63995297]
[1772608976455,1.87319552,85.94,85.912,2.29750784]
[1772608979072,11.63616053,85.939,85.912,2.29750784]
[1772608979278,14.00574832,85.939,85.912,2.29750784]
[1772608980783,2.36958779,85.929,85.901,2.29750784]
[1772608982079,11.63765012,85.928,85.901,2.29750784]
[1772608982390,11.63483779,85.949,85.921,2.29750784]
[1772608983280,11.63483779,85.949,85.92,1.87319552]
[1772608983281,11.63209994,85.969,85.941,2.29750784]
[1772608984060,1.87319552,85.96,85.941,2.29750784]
[1772608984479,2.36958779,85.963,85.941,2.29750784]
[1772608984685,14.00168773,85.969,85.941,2.29750784]
[1772608984979,2.36958779,85.968,85.941,2.29750784]
[1772608985756,11.63209994,85.969,85.943,2.29750784]
[1772608985959,11.63115287,85.976,85.951,2.29750784]
[1772608986157,11.63115287,85.976,85.953,2.29750784]
[1772608987782,11.63045398,85.982,85.961,2.29750784]
[1772608989159,12.37492845,85.977,85.964,2.29750784]
[1772608989364,12.37492845,85.977,85.962,11.63304716]
[1772608989365,3.74450439,85.977,85.962,11.63304716]
[1772608991470,2.40327072,85.999,85.97,1.87319552]
[1772608991674,1.97319552,86.0,85.97,1.87319552]
[1772608991675,0.1,86.0,85.97,1.87319552]
[1772608991976,2.50327072,86.0,85.97,1.87319552]
[1772608992170,2.40327072,85.999,85.97,1.87319552]
[1772608993182,2.40327072,85.989,85.95,1.87319552]
[1772608993373,2.40327072,85.977,85.951,11.63453595]
[1772608994786,2.40327072,85.977,85.941,11.63588973]
[1772608994989,2.40327072,85.975,85.941,11.63588973]
[1772608996370,2.40327072,85.975,85.95,1.87319552]
[1772608996794,2.40327072,85.973,85.94,1.87319552]
[1772608997174,2.40327072,85.969,85.94,1.87319552]
[1772608999488,2.40327072,85.969,85.95,1.87319552]
[1772609002391,2.40327072,85.969,85.951,11.63453595]
[1772609004687,2.40327072,85.969,85.95,1.87319552]
[1772609005298,2.40327072,85.969,85.94,1.87319552]
[1772609005299,2.40327072,85.968,85.94,1.87319552]